Cogmind - Beta 15 @@@ ROGUE MODE // 2025.05.23 @ 21:21:52 Player: bgdn01 Result: Destroyed by G-34 Mercenary with Small Laser Performance ------------- Evolutions (0) 0 Regions Visited (1) 200 Robots Destroyed (14) 70 Value Destroyed (314) 314 Prototype IDs (1) 20 Alien Tech Used (0) 0 Bonus (0) 0 TOTAL SCORE: 604 Bonus ------- None Cogmind --------- Core Integrity 0/250 Matter 300/300 Energy 107/125 System Corruption 0% Temperature Cool (51) Movement Walking (120) Location -10/Materials Parts ------- > --- POWER (1) -------- Light Ion Engine > --- PROPULSION (2) --- Improved Aluminum Leg Improved Aluminum Leg > --- UTILITY (2) ------ Cooling System Small Storage Unit > --- WEAPON (2) ------- Advanced Beam Cannon Advanced Beam Cannon > --- INVENTORY (8) ---- Improved Aluminum Leg Improved Aluminum Leg Sensor Array Beam Cannon Beam Cannon Advanced Beam Cannon Grenade Launcher Maul Peak State ------------ > --- POWER ------------ Light Ion Engine > --- PROPULSION ------- Improved Aluminum Leg Improved Aluminum Leg > --- UTILITY ---------- Cooling System Small Storage Unit > --- WEAPON ----------- Advanced Beam Cannon Advanced Beam Cannon > --- INVENTORY -------- Flight Unit Cooling System Sensor Array Beam Cannon Beam Cannon Advanced Beam Cannon Grenade Launcher Maul [Rating: 15] Favorites ----------- Power Light Ion Engine Engine Light Ion Engine Propulsion Aluminum Leg Leg Aluminum Leg Flight Unit Flight Unit Utility Small Storage Unit Device Cooling System Storage Small Storage Unit Weapon Advanced Beam Cannon Energy Gun Medium Laser Energy Cannon Advanced Beam Cannon Ballistic Gun Assault Rifle Impact Weapon Maul Build | -11 -10 ------- Run | Yrd Mat Slots Evolved . | . . Power . | . . Propulsion . | . . Utility . | . . Weapon . | . . Parts Attached 19 | 8 11 Power 3 | 2 1 Engine 3 | 2 1 Core . | . . Reactor . | . . Propulsion 6 | 2 4 Treads . | . . Leg 4 | 2 2 Wheel . | . . Hover . | . . Flight 2 | . 2 Utility 3 | 1 2 Device 2 | . 2 Storage 1 | 1 . Processor . | . . Hackware . | . . Protection . | . . Artifact . | . . Weapon 7 | 3 4 Energy Gun 2 | 2 . Energy Cannon 2 | . 2 Ballistic Gun 1 | 1 . Ballistic Cannon . | . . Launcher . | . . Special Weapon . | . . Impact Weapon 2 | . 2 Slashing Weapon . | . . Piercing Weapon . | . . Special Melee Weapon . | . . Unidentified Prototypes 1 | . 1 Parts Lost 3 | . 3 Power 1 | . 1 Propulsion 2 | . 2 Utility . | . . Weapon . | . . Highest Loss Streak 3 | . 3 To Critical Strikes . | . . Average Backups 6 | 1 7 Power . | . . Propulsion . | . . Utility 1 | . 1 Weapon 5 | . 5 Tool/Special . | . . Unused Backups 11 | . 11 Power . | . . Propulsion 3 | . 3 Utility 1 | . 1 Weapon 7 | . 7 Tool/Special . | . . Average Slot Usage (%) 96 | . 96 Engine 13 | . 13 Leg 16 | . 16 Flight 9 | . 9 Device 13 | . 13 Storage 14 | . 14 Energy Gun 1 | . 1 Energy Cannon 14 | . 14 Impact Weapon 12 | . 12 Peak Build Rating 15 | 6 15 Average Rating 11 | 4 11 On Entrance 3 | . 6 Naked Turns . | . . Heaviest Build 18 | 14 18 Greatest Support 26 | 20 26 Greatest Overweight (x) 5 | . 5 Average Overweight (x) . | . . Largest Inventory Capacity 8 | 8 8 Average Capacity 7 | 7 8 Most Carried 8 | 2 8 Average Carried 6 | 1 7 Final Capacity 8 | 8 8 Final Carried 8 | 2 8 Class Distribution -------------------- 100% | Mutant Dominant Class ---------------- Mutant | -10/Materials Resources | -11 -10 ----------- Run | Yrd Mat Matter Collected 386 | 199 187 Remotely . | . . Salvage Created 364 | . 364 Parts 16 | . 16 Haulers Intercepted . | . . Recyclers Shooed . | . . Parts Field Recycled . | . . Retrieved Matter . | . . Parts Self-Destructed . | . . Prevented . | . . Kills | -11 -10 ------- Run | Yrd Mat Combat Hostiles Destroyed 13 | . 13 Melee 3 | . 3 Cannons 6 | . 6 Classes Destroyed 3 | . 3 Watcher 1 | . 1 Swarmer 6 | . 6 Grunt 7 | . 7 Best Kill Streak 6 | . 6 Combat Bots Only 6 | . 6 Max Kills in Single Turn 1 | . 1 Gunslinging . | . . Exploded . | . . Melee 1 | . 1 Uniques/NPCs Destroyed . | . . Combat | -11 -10 -------- Run | Yrd Mat Hostile Shots Fired 119 | . 119 Missed 18 | . 18 Hits 101 | . 101 Projectile 101 | . 101 Critical Strikes 1 | . 1 Damage Taken 910 | . 910 Core 250 | . 250 Absorbed by Shields . | . . Core Remaining (%) 100 | 100 . Volleys Fired 16 | . 16 Largest 2 | . 2 Hottest 136 | . 136 Shots Fired 32 | . 32 Gun . | . . Cannon 32 | . 32 Launcher . | . . Special . | . . Kinetic . | . . Thermal 32 | . 32 Explosive . | . . Electromagnetic . | . . Robot Hit Streak 3 | . 3 Robot Miss Streak 6 | . 6 Penetration Max . | . . Secondary Targets . | . . Shots Hit Robots 31 | . 31 Core Hits 9 | . 9 Critical Kills . | . . Critical Parts Destroyed 1 | . 1 Critical Strikes 1 | . 1 Smash 1 | . 1 Melee Attacks 23 | . 23 Impact 23 | . 23 Slashing . | . . Piercing . | . . Sneak Attacks . | . . Combat Hostiles . | . . Follow-up Attacks 1 | . 1 Damage Inflicted 964 | . 964 Guns . | . . Cannons 329 | . 329 Explosions . | . . Melee 634 | . 634 Ramming 1 | . 1 Kinetic . | . . Thermal 329 | . 329 Explosive . | . . Electromagnetic . | . . Impact 634 | . 634 Slashing . | . . Piercing . | . . Highest Corruption . | . . Average Corruption . | . . Corruption Purged . | . . Corruption Blocked . | . . Overload Shots . | . . Overflow Damage 163 | . 163 Projectiles . | . . Explosions . | . . Melee 163 | . 163 Knockbacks 2 | . 2 Impact 2 | . 2 Kinetic . | . . Secondary . | . . Self-Inflicted Damage . | . . Shots . | . . Rammed 1 | . 1 Targets Rammed 1 | . 1 Kicked . | . . Crushed . | . . Highest Temperature 132 | . 132 Average Temperature 45 | . 45 Received Heat Transfer 198 | . 198 Siege Activations . | . . Martial Activations . | . . Shielding Activations . | . . Robots Disrupted . | . . Combat Hostiles . | . . Robots Corrupted 4 | . 4 Combat Hostiles 4 | . 4 Parts Fried 6 | . 6 Impact Corruptions 8 | . 8 Robots Melted . | . . Combat Hostiles . | . . Parts Melted . | . . Heat Transferred 592 | . 592 Parts Sabotaged . | . . Parts Stolen . | . . Parts Stripped . | . . Power Chain Reactions . | . . Alert | -11 -10 ------- Run | Yrd Mat Maximum Alert Level . | . . Low Security (%) 100 | 100 100 Level 1 . | . . Level 2 . | . . Level 3 . | . . Level 4 . | . . Level 5 . | . . High Security . | . . Max Security . | . . Peak Influence 115 | . 115 Initial . | . . Average 34 | . 38 Influence Increases 330 | . 330 Destroy 0b10 Robot/C 260 | . 260 Destroy 0b10 Robot/NC 5 | . 5 Destroy Leader 42 | . 42 Successful Hack 8 | . 8 Lose Combat Pursuer 15 | . 15 Influence Decreases 256 | . 256 Time Decay 226 | . 226 Lost Part 30 | . 30 Squads Dispatched 3 | . 3 Investigation 2 | . 2 Extermination . | . . Reinforcement 1 | . 1 Assault . | . . Garrison . | . . Intercept . | . . Searches Triggered . | . . Construction Impeded . | . . Haulers Reinforced . | . . Active Scanning Responses . | . . Cargo Convoy Interrupts . | . . Stealth | -11 -10 --------- Run | Yrd Mat Distress Signals . | . . Communications Jammed . | . . Distress Signals . | . . Times Spotted 17 | . 17 Peak Tracking Total 5 | . 5 Tactical Retreats 1 | . 1 Traps | -11 -10 ------- Run | Yrd Mat Traps Triggered 1 | . 1 Indirectly . | . . Trap Hack Attempts . | . . Triggered . | . . Disarmed . | . . Reprogrammed . | . . Reused . | . . Traps Extracted . | . . Installed . | . . Triggered . | . . Machines | -11 -10 ---------- Run | Yrd Mat Machines Disabled 1 | . 1 Max in Single Turn 1 | . 1 Machines Repaired . | . . Machines Dismantled . | . . Machines Sabotaged . | . . Overloaded Fab Kills . | . . Hacking | -11 -10 --------- Run | Yrd Mat Machines Accessed 3 | . 3 Terminals 2 | . 2 Fabricators . | . . Repair Stations . | . . Recycling Units 1 | . 1 Scanalyzers . | . . Garrison Access . | . . Total Hacks 8 | . 8 Successful 3 | . 3 Failed 5 | . 5 Catastrophic 1 | . 1 Database Lockouts . | . . Manual . | . . Terminals 6 | . 6 Fabricators . | . . Repair Stations . | . . Recycling Units 2 | . 2 Scanalyzers . | . . Garrison Access . | . . Terminal Hacks 2 | . 2 Locate Traps 2 | . 2 Fabricator Hacks . | . . Repair Station Hacks . | . . Recycling Unit Hacks 1 | . 1 Report Inventory 1 | . 1 Scanalyzer . | . . Garrison Access Hacks . | . . Unauthorized Hacks . | . . Terminals . | . . Fabricators . | . . Repair Stations . | . . Recycling Units . | . . Scanalyzers . | . . Garrison Access . | . . Data Cores Recovered . | . . Used . | . . Hacking Detections 3 | . 3 Full Trace Events 2 | . 2 Feedback Events . | . . Feedback Blocked . | . . Robot Schematics Acquired . | . . Robots Built . | . . Authchips . | . . Time . | . . Total Robot Build Rating . | . . Part Schematics Acquired . | . . Parts Built . | . . Authchips . | . . Time . | . . Total Part Build Rating . | . . Parts Repaired . | . . Time . | . . Parts Recycled . | . . Recycled Matter . | . . Retrieved Matter . | . . Retrieved Components . | . . Parts Scanalyzed . | . . Part Schematics Acquired . | . . Parts Damaged . | . . Bothacking | -11 -10 ------------ Run | Yrd Mat Used RIF Installer . | . . Robots Hacked . | . . Non-combat . | . . Combat . | . . Robot Hacks Applied . | . . Relay Couplers Released . | . . Fabnet Peak Effective % . | . . Robots Rewired . | . . Allies Hacked . | . . Hacks Repelled . | . . Allies | -11 -10 -------- Run | Yrd Mat Total Allies . | . . Largest Group . | . . Highest-Rated Group . | . . Highest-Rated Ally . | . . Total Orders . | . . Ally Attacks . | . . Total Damage . | . . Kills . | . . Allies Corrupted . | . . Allies Melted . | . . Intel | -11 -10 ------- Run | Yrd Mat Active Infowar (turns) . | . . Robot Analysis Total . | . . Derelict Logs Recovered . | . . Drone Launches . | . . Drone Recoveries . | . . Exploration | -11 -10 ------------- Run | Yrd Mat Turns Passed 802 | 81 721 Spaces Moved 387 | 58 329 Core 5 | 2 3 Treads . | . . Legs 273 | 56 217 Wheels . | . . Hover . | . . Flight 109 | . 109 Fastest Speed 50 | 50 120 Average Speed 143 | 117 147 Slowest Speed 360 | 120 360 Overloaded Moves . | . . Propulsion Burnouts . | . . Robots Hopped . | . . Potential Cave-ins . | . . Cave-ins Triggered . | . . Exploration Rate (%) 22 | 4 41 Regions Visited 1 Branch Regions . Pre-discovered Areas . | . . Known Exits Taken . | . . Unknown Exits Taken 1 | 1 . Scrap Searched . | . . Spaces Dug . | . . Terrain Destroyed . | . . Melee . | . . Projectile . | . . AOE . | . . Terrain Rammed . | . . Walls Destroyed . | . . Machines Disabled . | . . Actions | -11 -10 --------- Run | Yrd Mat Total 558 | 67 491 Wait 83 | . 83 Move 386 | 57 329 Hop . | . . Pick Up 17 | 1 16 Fast Attach 13 | 7 6 Attach 5 | . 5 Detach 3 | 1 2 Swap 1 | 1 . Drop 12 | . 12 Fire 16 | . 16 Melee 21 | . 21 Ram 1 | . 1 Kick . | . . Crush . | . . Escape Stasis . | . . Rewire . | . . Trap . | . . Miscellaneous . | . . Route ------- -11/Scrapyard -10/Materials (discovered 1 exit: [*Min]) History --------- Turn | Location | Event 6 | -11/Scrapyard | Discovered new exit (range 14) 82 | -11/Scrapyard | Entered Materials 317 | -10/Materials | Build established: Mutant 395 | -10/Materials | Discovered new exit (range 16) 430 | -10/Materials | Core integrity fell below 50% 462 | -10/Materials | Lost 3 parts (1p2n) 768 | -10/Materials | Core integrity fell below 20% 803 | -10/Materials | Destroyed by G-34 Mercenary with Small Laser Last Messages --------------- 00680_ Dropped Maul. 00681_ Dropped Assault Rifle. 00683_ R-06 Scavenger collects Maul. 00685_ O-16 Technician: "IFF HANDSHAKE FAILED. SECURING TERMINAL." 00687_ R-06 Scavenger collects Assault Rifle. 00687_ Acquired Grenade Launcher. 00690_ ALERT: Hostiles spotted, dispatching reinforcements to Terminal M004. 00700_ Acquired Beam Cannon. 00716_ Dropped Flight Unit. 00716_ Acquired Imp. Aluminum Leg. 00718_ Dropped Flight Unit. 00720_ Acquired Imp. Aluminum Leg. 00722_ Dropped Flight Unit. 00723_ Acquired Imp. Aluminum Leg. 00724_ Dropped Cooling System. 00727_ Acquired Imp. Aluminum Leg. 00737_ R-06 Scavenger collects Flight Unit. 00765_ G-34 Mercenary destroyed. 00787_ Acquired 30 matter. Map ----- +----------------------------------------------------+ | | | | | | | | | | | | | | | | | | | | | | | ????????????????????????????????????????????????? | | ????????????????????????????????????????????????? | | ????????????????????????????????????????????????? | | ????????????????????????????????????????????????? | | ????????????????????????????????????????????????? | | ????????????????????????????????????????????????? | | ????????????????????????????????????????????????? | | ???????? ???????????????????????????????????????? | | ????????? ?????????????????????????????????????? | | ???????? "" ????????????????????????????????????? | | ???????? T" ###+##############?????????????????? | | ???? "" ^ ^^ ^ #?????????????????? | | ???? ga #?????????????????? | | ???? g ^^ []] #?????????????????? | | ???????####+##### ]] @ ] #?????????????????? | | ????????????????# ] [[ #?????????????????? | | ????????????????# =%= #?????????????????? | | ????????????????# r [%= #?????????????????? | | ????????????????# #######%%=####??????????????? | | ????????????????# #?????#** #??????????????? | | ???????????????## ##????# =[[==#??????????????? | | ???????????????# #????#!=[[==#??????????????? | | ???????????????# #????########??????????????? | | ???????######### T #??????????????????????????? | | ######?# # #??????????????????????????? | | #?# !!#! #??????????????????????????? | | #?# !!## ##??????????????????????????? | | """ #?# ## #???????????????????????????? | | """ #?# ## #???????????????????????????? | | """ #?#######+## ####### #?????????????????? | | """ #?????# ^ #?????????????????? | | #?????# #?????????????????? | | #?????# ^^ #?????????????????? | | +#####?######### """" ???????????????? | | ##### # ^"""" ????????????????? | | """" ????????????????? | | T < ^^ #######????????????????? | | % #??????????????????????? | | #####" "## """" #??????????????????????? | +----------------------------------------------------+ Best States ------------- Heat Dissipation 47 Energy Generation 10 Energy Capacity 250 Matter Stores 300 Matter Capacity 300 Sight Range 16 Terrain Scan Density 10 Evasion (%) 55 Item Schematics ----------------- None Robot Schematics ------------------ None Fabricated ------------ Nothing Repaired ---------- Nothing Alien Tech Used ----------------- None Achievements -------------- None Challenges ------------ None Game ------ Seed NeutrinoDrainedStatue Manual? 0 Play Time 00:13:14 Cumulative 4.1 hours Start 2025.05.23 @ 20:48:46 End 2025.05.23 @ 21:21:52 Sessions 1 Manual Loads 0 Difficulty Rogue Special Mode None Game No. 12 Rogue 12 Adventurer 0 Explorer 0 Win Type - Total 0 Types 0/0/0/0/0/0/0/0/0/0 Lore% 2 Gallery% 5 Achievement% 7 Wizard Run 0 Options --------- Layout 0 ASCII 0 Keyboard 0 Movement Numpad Keybinds 0 Fullscreen 2 Font 18/CogNarrow Map View 38x25 Zoom Use 96% Tactical HUD 1 Map Filters NONE Filters NONE Steam 1 RUN: abbed4ec-ba98-4f29-8b2b-f32d8c350d80